[Event "SixDays Budapest IM-A 10-2024"]
[Site "Budapest"]
[Date "2024.09.30"]
[Round "1.1"]
[White "Valkova, Angelika"]
[Black "Chubakov, Sultan"]
[Result "1/2-1/2"]
[ECO "D27"]
[WhiteElo "2068"]
[BlackElo "2265"]
[Annotator "RC"]
[PlyCount "160"]
[EventDate "2024.09.24"]
[EventType "tourn"]
[EventCountry "HUN"]
[SourceTitle "playchess.com"]
[Source "ChessBase"]
[SourceQuality "1"]
[TimeControl "5400+30"]

1. d4 {[%emt 0:00:02]} d5 {[%emt 0:00:06]} 2. c4 {[%emt 0:00:05]} dxc4 {[%emt 0:00:08]} 3. Nf3 {[%emt 0:00:04]} Nf6 {[%emt 0:00:06]} 4. e3 {[%emt 0:00:05]} e6 {[%emt 0:00:07]} 5. Bxc4 {[%emt 0:00:07]} c5 {[%emt 0:00:15]} 6. O-O {[%emt 0:00:08]} a6 {[%emt 0:00:07]} 7. dxc5 {[%emt 0:00:08]} Bxc5 {[%emt 0:01:18]} 8. Qxd8+ {[%emt 0:00:08]} Kxd8 {[%emt 0:00:03]} 9. Nbd2 {[%emt 0:00:29]} Ke7 {[%emt 0:05:27]} 10. Nb3 {[%emt 0:03:26]} Bd6 {[%emt 0:04:48]} 11. Rd1 {[%emt 0:05:21]} b6 {[%emt 0:08:11]} 12. Ng5 {[%emt 0:03:38]} Rd8 {[%emt 0:04:00]} 13. Bd2 {[%emt 0:04:46]} h6 {[%emt 0:04:58]} 14. Nf3 {[%emt 0:02:14]} Ne4 {[%emt 0:04:15]} 15. Be1 {[%emt 0:00:28]} Bb7 {[%emt 0:02:04]} 16. Nfd4 {[%emt 0:01:24]} g6 {[%emt 0:06:24]} 17. f3 {[%emt 0:00:37]} Nf6 {[%emt 0:02:40]} 18. e4 {[%emt 0:01:27]} Nbd7 {[%emt 0:04:42]} 19. Rac1 {[%emt 0:05:42]} e5 {[%emt 0:05:11]} 20. Nc2 {[%emt 0:02:24]} a5 {[%emt 0:04:50]} 21. a4 {[%emt 0:10:06]} Nc5 {[%emt 0:01:23]} 22. Nxc5 {[%emt 0:01:37]} Bxc5+ {[%emt 0:00:43]} 23. Bf2 {[%emt 0:07:23]} Bxf2+ {[%emt 0:04:59]} 24. Kxf2 {[%emt 0:00:05]} Nd7 {[%emt 0:02:53]} 25. Ne3 {[%emt 0:02:52]} Nc5 {[%emt 0:01:25]} 26. b3 {[%emt 0:04:11]} Rac8 {[%emt 0:04:53]} 27. Rxd8 {[%emt 0:10:54]} Rxd8 {[%emt 0:01:56]} 28. Ke2 {[%emt 0:02:46]} h5 {[%emt 0:02:27]} 29. h4 {[%emt 0:09:08]} Rc8 {[%emt 0:03:20]} 30. Nd5+ {[%emt 0:00:54]} Bxd5 {[%emt 0:00:29]} 31. Bxd5 {[%emt 0:00:05]} f5 {[%emt 0:01:52]} 32. exf5 {[%emt 0:07:09]} gxf5 {[%emt 0:00:05]} 33. g4 {[%emt 0:00:11]} Rd8 {[%emt 0:05:01]} 34. Bc4 {[%emt 0:01:33]} fxg4 {[%emt 0:00:20]} 35. fxg4 {[%emt 0:00:10]} hxg4 {[%emt 0:01:09]} 36. Rf1 {[%emt 0:01:00]} Rh8 {[%emt 0:02:57]} 37. Rf7+ {[%emt 0:00:44]} Kd8 {[%emt 0:00:58]} 38. Rf5 {[%emt 0:01:19]} Rxh4 {[%emt 0:01:33]} 39. Rxe5 {[%emt 0:00:05]} Rh2+ {[%emt 0:02:07]} 40. Ke1 {[%emt 0:04:25]} Rh3 {[%emt 0:05:48]} 41. Rg5 {[%emt 0:01:41]} Re3+ {[%emt 0:01:32]} 42. Kf2 {[%emt 0:03:45]} Rf3+ {[%emt 0:01:29]} 43. Ke2 {[%emt 0:00:33]} Rf4 {[%emt 0:00:39]} 44. Rg6 {[%emt 0:01:35]} Nxa4 {[%emt 0:02:11]} 45. Ke3 {[%emt 0:02:20]} Rf3+ {[%emt 0:00:10]} 46. Kd4 {[%emt 0:00:23]} Nb2 {[%emt 0:00:58]} 47. Rxg4 {[%emt 0:02:35]} Nxc4 {[%emt 0:00:29]} 48. Kxc4 {[%emt 0:00:08]} Kc7 {[%emt 0:00:07]} 49. Rg7+ {[%emt 0:00:26]} Kc6 {[%emt 0:00:07]} 50. Rg6+ {[%emt 0:00:06]} Kb7 {[%emt 0:00:08]} 51. Rg7+ {[%emt 0:00:13]} Ka6 {[%emt 0:00:03]} 52. Rg6 {[%emt 0:00:12]} Re3 {[%emt 0:00:30]} 53. Rh6 {[%emt 0:00:11]} Re1 {[%emt 0:00:21]} 54. Kc3 {[%emt 0:00:24]} Rc1+ {[%emt 0:00:04]} 55. Kb2 {[%emt 0:00:10]} Rc5 {[%emt 0:00:03]} 56. Rg6 {[%emt 0:00:23]} Kb5 {[%emt 0:00:04]} 57. Rg4 {[%emt 0:00:06]} Rf5 {[%emt 0:00:09]} 58. Kc3 {[%emt 0:00:49]} Kc5 {[%emt 0:00:14]} 59. Rc4+ {[%emt 0:00:17]} Kd5 {[%emt 0:00:13]} 60. Rd4+ {[%emt 0:00:10]} Kc6 {[%emt 0:00:22]} 61. Ra4 {[%emt 0:01:53]} Rf3+ {[%emt 0:00:56]} 62. Kb2 {[%emt 0:00:16]} Kc5 {[%emt 0:00:06]} 63. Rc4+ {[%emt 0:00:26]} Kd5 {[%emt 0:00:31]} 64. Rh4 {[%emt 0:00:46]} Re3 {[%emt 0:00:14]} 65. Ra4 {[%emt 0:00:52]} Re7 {[%emt 0:00:17]} 66. Ra1 {[%emt 0:00:16]} Re2+ {[%emt 0:00:23]} 67. Kc3 {[%emt 0:00:08]} Kc5 {[%emt 0:00:28]} 68. Ra4 {[%emt 0:00:34]} Re3+ {[%emt 0:00:08]} 69. Kb2 {[%emt 0:00:14]} b5 {[%emt 0:00:10]} 70. Rh4 {[%emt 0:02:51]} Re2+ {[%emt 0:00:41]} 71. Kb1 {[%emt 0:00:15]} Rd2 {[%emt 0:00:26]} 72. Rg4 {[%emt 0:00:24]} Re2 {[%emt 0:00:31]} 73. Rh4 {[%emt 0:00:16]} Kd5 {[%emt 0:00:11]} 74. Rg4 {[%emt 0:00:26]} b4 {[%emt 0:00:33]} 75. Rg5+ {[%emt 0:01:01]} Kd4 {[%emt 0:00:26]} 76. Rxa5 {[%emt 0:00:38]} Kc3 {[%emt 0:00:04]} 77. Rh5 {[%emt 0:00:10]} Re1+ {[%emt 0:00:17]} 78. Ka2 {[%emt 0:00:05]} Re2+ {[%emt 0:00:02]} 79. Kb1 {[%emt 0:00:10]} Re1+ {[%emt 0:00:03]} 80. Ka2 {[%emt 0:00:06]} Re2+ {[%emt 0:00:04]} 1/2-1/2

[Event "SixDays Budapest IM-A 10-2024"]
[Site "Budapest"]
[Date "2024.09.30"]
[Round "1.2"]
[White "Kustar, Sandor"]
[Black "Pavan Karthikeya Varma Gunturi"]
[Result "1/2-1/2"]
[ECO "A05"]
[WhiteElo "2252"]
[BlackElo "2056"]
[Annotator "RC"]
[PlyCount "40"]
[EventDate "2024.09.24"]
[EventType "tourn"]
[EventCountry "HUN"]
[SourceTitle "playchess.com"]
[Source "ChessBase"]
[SourceQuality "1"]
[TimeControl "5400+30"]

1. Nf3 {[%emt 0:00:06]} Nf6 {[%emt 0:00:19]} 2. c4 {[%emt 0:00:06]} e6 {[%emt 0:00:22]} 3. g3 {[%emt 0:00:09]} b6 {[%emt 0:02:11]} 4. Bg2 {[%emt 0:00:12]} Bb7 {[%emt 0:00:45]} 5. O-O {[%emt 0:00:34]} Be7 {[%emt 0:02:51]} 6. d4 {[%emt 0:00:17]} O-O {[%emt 0:01:42]} 7. Re1 {[%emt 0:00:10]} d5 {[%emt 0:09:08]} 8. cxd5 {[%emt 0:01:57]} Bxd5 {[%emt 0:05:16]} 9. Nc3 {[%emt 0:01:12]} Bb7 {[%emt 0:01:48]} 10. e4 {[%emt 0:02:05]} c5 {[%emt 0:07:04]} 11. d5 {[%emt 0:08:22]} exd5 {[%emt 0:02:37]} 12. exd5 {[%emt 0:00:15]} Na6 {[%emt 0:08:23]} 13. Ne5 {[%emt 0:04:50]} Bd6 {[%emt 0:05:13]} 14. Nc6 {[%emt 0:25:43]} Qd7 {[%emt 0:06:02]} 15. Bg5 {[%emt 0:00:07]} Qf5 {[%emt 0:08:04]} 16. Re5 {[%emt 0:17:04]} Qg6 {[%emt 0:04:36]} 17. Bf4 {[%emt 0:00:14]} Bxc6 {[%emt 0:03:12]} 18. dxc6 {[%emt 0:07:16]} Bxe5 {[%emt 0:00:36]} 19. Bxe5 {[%emt 0:00:08]} Rac8 {[%emt 0:04:55]} 20. Qa4 {[%emt 0:01:51]} Nb4 {[%emt 0:05:10]} 1/2-1/2

[Event "SixDays Budapest IM-A 10-2024"]
[Site "Budapest"]
[Date "2024.09.30"]
[Round "1.3"]
[White "Polyik, Peter"]
[Black "Pribelszky, Bence Daniel"]
[Result "1-0"]
[ECO "A11"]
[WhiteElo "2304"]
[BlackElo "2408"]
[Annotator "RC"]
[PlyCount "95"]
[EventDate "2024.09.24"]
[EventType "tourn"]
[EventCountry "HUN"]
[SourceTitle "playchess.com"]
[Source "ChessBase"]
[SourceQuality "1"]
[TimeControl "5400+30"]

1. e4 {[%emt 0:01:17]} a6 {[%emt 0:00:30]} 2. d4 {[%emt 0:00:06]} c6 {[%emt 0:00:06]} 3. Nf3 {[%emt 0:02:45]} d5 {[%emt 0:00:09]} 4. e5 {[%emt 0:00:32]} Bg4 {[%emt 0:01:43]} 5. Be2 {[%emt 0:00:36]} e6 {[%emt 0:01:09]} 6. O-O {[%emt 0:02:15]} Ne7 {[%emt 0:00:14]} 7. Nbd2 {[%emt 0:05:11]} c5 {[%emt 0:00:40]} 8. dxc5 {[%emt 0:03:10]} Nec6 {[%emt 0:00:11]} 9. c4 {[%emt 0:02:27]} Bxc5 {[%emt 0:15:06]} 10. cxd5 {[%emt 0:10:43]} exd5 {[%emt 0:00:08]} 11. Nb3 {[%emt 0:07:15]} Be7 {[%emt 0:00:29]} 12. Nfd4 {[%emt 0:01:17]} Bxe2 {[%emt 0:03:00]} 13. Qxe2 {[%emt 0:00:06]} O-O {[%emt 0:00:31]} 14. Nf5 {[%emt 0:13:03]} Qd7 {[%emt 0:15:13]} 15. Qg4 {[%emt 0:07:35]} g6 {[%emt 0:00:03]} 16. Nxe7+ {[%emt 0:00:32]} Nxe7 {[%emt 0:08:58]} 17. Qg3 {[%emt 0:10:21]} Nf5 {[%emt 0:02:46]} 18. Qh3 {[%emt 0:00:16]} Nc6 {[%emt 0:02:19]} 19. Re1 {[%emt 0:02:16]} Qe7 {[%emt 0:12:42]} 20. Bf4 {[%emt 0:02:58]} Nd8 {[%emt 0:02:09]} 21. g4 {[%emt 0:07:48]} Ng7 {[%emt 0:06:19]} 22. Be3 {[%emt 0:03:40]} Nde6 {[%emt 0:01:09]} 23. Rad1 {[%emt 0:00:35]} Rad8 {[%emt 0:04:24]} 24. f4 {[%emt 0:03:06]} h5 {[%emt 0:10:47]} 25. gxh5 {[%emt 0:06:23]} Nf5 {[%emt 0:00:02]} 26. Re2 {[%emt 0:02:05]} d4 {[%emt 0:01:39]} 27. Bd2 {[%emt 0:00:36]} Neg7 {[%emt 0:06:44]} 28. Rg2 {[%emt 0:01:27]} Qe6 {[%emt 0:03:04]} 29. Nc5 {[%emt 0:02:18]} Qc6 {[%emt 0:00:10]} 30. Rc1 {[%emt 0:00:33]} Nxh5 {[%emt 0:01:23]} 31. e6 {[%emt 0:00:34]} Nhg7 {[%emt 0:00:37]} 32. Nd7 {[%emt 0:00:15]} Qxe6 {[%emt 0:00:06]} 33. Nxf8 {[%emt 0:00:13]} Rxf8 {[%emt 0:00:02]} 34. Qd3 {[%emt 0:01:44]} Nh4 {[%emt 0:02:21]} 35. Re2 {[%emt 0:00:22]} Qd5 {[%emt 0:00:26]} 36. Be1 {[%emt 0:01:24]} Nf3+ {[%emt 0:00:35]} 37. Kf2 {[%emt 0:00:01]} Nxh2 {[%emt 0:00:34]} 38. Qh3 {[%emt 0:01:05]} Qh1 {[%emt 0:00:31]} 39. Bd2 {[%emt 0:00:12]} Ng4+ {[%emt 0:00:30]} 40. Qxg4 {[%emt 0:00:06]} Qh2+ {[%emt 0:00:03]} 41. Kf3 {[%emt 0:00:30]} Qh8 {[%emt 0:00:04]} 42. Bb4 {[%emt 0:00:30]} Rd8 {[%emt 0:00:07]} 43. Be7 {[%emt 0:00:32]} d3 {[%emt 0:00:44]} 44. Bxd8 {[%emt 0:01:00]} dxe2 {[%emt 0:00:02]} 45. Bf6 {[%emt 0:00:17]} Qh2 {[%emt 0:00:01]} 46. Qh4 {[%emt 0:00:24]} e1=N+ {[%emt 0:01:13]} 47. Rxe1 {[%emt 0:00:08]} Qc2 {[%emt 0:00:22]} 48. Re8+ {[%emt 0:00:03]} 1-0

[Event "SixDays Budapest IM-A 10-2024"]
[Site "Budapest"]
[Date "2024.09.30"]
[Round "1.4"]
[White "Kwon, Sehyun"]
[Black "Krishna C R G"]
[Result "1/2-1/2"]
[ECO "B00"]
[WhiteElo "2248"]
[BlackElo "2425"]
[Annotator "RC"]
[PlyCount "222"]
[EventDate "2024.09.24"]
[EventType "tourn"]
[EventCountry "HUN"]
[SourceTitle "playchess.com"]
[Source "ChessBase"]
[SourceQuality "1"]
[TimeControl "5400+30"]

1. e4 {[%emt 0:00:19]} Nc6 {[%emt 0:00:05]} 2. Nf3 {[%emt 0:00:08]} d6 {[%emt 0:00:02]} 3. d4 {[%emt 0:00:23]} Nf6 {[%emt 0:00:03]} 4. Nc3 {[%emt 0:00:17]} g6 {[%emt 0:00:02]} 5. Be3 {[%emt 0:02:03]} Bg7 {[%emt 0:00:04]} 6. Qd2 {[%emt 0:01:10]} O-O {[%emt 0:05:58]} 7. d5 {[%emt 0:06:37]} Nb8 {[%emt 0:00:17]} 8. Bh6 {[%emt 0:06:08]} c6 {[%emt 0:06:20]} 9. O-O-O {[%emt 0:03:39]} Bg4 {[%emt 0:08:49]} 10. Re1 {[%emt 0:06:45]} Bxf3 {[%emt 0:39:09]} 11. gxf3 {[%emt 0:00:47]} Nbd7 {[%emt 0:00:01]} 12. h4 {[%emt 0:04:47]} Ne5 {[%emt 0:03:37]} 13. Be2 {[%emt 0:06:02]} cxd5 {[%emt 0:08:15]} 14. exd5 {[%emt 0:02:07]} Qa5 {[%emt 0:00:11]} 15. h5 {[%emt 0:16:41]} Rfc8 {[%emt 0:00:02]} 16. Bxg7 {[%emt 0:01:56]} Kxg7 {[%emt 0:00:00]} 17. hxg6 {[%emt 0:00:58]} fxg6 {[%emt 0:00:00]} 18. f4 {[%emt 0:05:25]} Nf7 {[%emt 0:01:02]} 19. Bd3 {[%emt 0:10:05]} Rc7 {[%emt 0:06:50]} 20. Reg1 {[%emt 0:03:56]} Kf8 {[%emt 0:03:08]} 21. a3 {[%emt 0:08:04]} Rac8 {[%emt 0:00:01]} 22. Nb5 {[%emt 0:01:36]} Rxc2+ {[%emt 0:00:26]} 23. Bxc2 {[%emt 0:00:25]} Qxb5 {[%emt 0:00:02]} 24. Kb1 {[%emt 0:04:58]} Rc5 {[%emt 0:01:05]} 25. Re1 {[%emt 0:00:29]} Qc4 {[%emt 0:02:15]} 26. Rh3 {[%emt 0:01:16]} Qxd5 {[%emt 0:01:29]} 27. Qe3 {[%emt 0:00:26]} e5 {[%emt 0:06:31]} 28. Bb3 {[%emt 0:02:26]} Qc6 {[%emt 0:00:03]} 29. fxe5 {[%emt 0:00:56]} Rxe5 {[%emt 0:00:46]} 30. Qd2 {[%emt 0:00:17]} Ne4 {[%emt 0:01:56]} 31. Qf4 {[%emt 0:04:22]} Nc3+ {[%emt 0:02:08]} 32. Rxc3 {[%emt 0:00:04]} Rxe1+ {[%emt 0:00:04]} 33. Ka2 {[%emt 0:00:05]} Qd7 {[%emt 0:00:00]} 34. Qf6 {[%emt 0:00:23]} d5 {[%emt 0:00:45]} 35. Rc5 {[%emt 0:00:34]} Re5 {[%emt 0:03:22]} 36. f4 {[%emt 0:00:29]} Rf5 {[%emt 0:01:20]} 37. Qd4 {[%emt 0:01:22]} b6 {[%emt 0:00:01]} 38. Rc3 {[%emt 0:00:30]} Qd8 {[%emt 0:00:56]} 39. Rc6 {[%emt 0:00:18]} Qd7 {[%emt 0:02:02]} 40. Ba4 {[%emt 0:00:08]} Qb7 {[%emt 0:00:47]} 41. Qc3 {[%emt 0:00:37]} d4 {[%emt 0:00:17]} 42. Qxd4 {[%emt 0:00:58]} b5 {[%emt 0:00:36]} 43. Qc3 {[%emt 0:00:08]} bxa4 {[%emt 0:00:40]} 44. Rc8+ {[%emt 0:00:03]} Nd8 {[%emt 0:00:32]} 45. Qh8+ {[%emt 0:00:30]} Kf7 {[%emt 0:00:19]} 46. Qxh7+ {[%emt 0:01:11]} Ke6 {[%emt 0:00:12]} 47. Qg8+ {[%emt 0:00:41]} Nf7 {[%emt 0:00:40]} 48. Qxg6+ {[%emt 0:00:18]} Rf6 {[%emt 0:00:01]} 49. Qg4+ {[%emt 0:00:24]} Ke7 {[%emt 0:00:14]} 50. Qe2+ {[%emt 0:00:44]} Re6 {[%emt 0:00:02]} 51. Qc4 {[%emt 0:00:23]} Qb3+ {[%emt 0:02:01]} 52. Qxb3 {[%emt 0:00:03]} axb3+ {[%emt 0:00:03]} 53. Kxb3 {[%emt 0:00:02]} Rb6+ {[%emt 0:00:13]} 54. Ka4 {[%emt 0:00:23]} Rxb2 {[%emt 0:01:02]} 55. Rc7+ {[%emt 0:00:13]} Ke6 {[%emt 0:00:01]} 56. Rxa7 {[%emt 0:00:19]} Nd6 {[%emt 0:00:03]} 57. Ra5 {[%emt 0:00:34]} Rf2 {[%emt 0:00:06]} 58. Re5+ {[%emt 0:01:04]} Kd7 {[%emt 0:00:01]} 59. Kb3 {[%emt 0:01:01]} Rf3+ {[%emt 0:00:06]} 60. Kc2 {[%emt 0:00:17]} Rxf4 {[%emt 0:00:17]} 61. a4 {[%emt 0:00:35]} Rxa4 {[%emt 0:00:06]} 62. Kd3 {[%emt 0:00:12]} Nf7 {[%emt 0:00:08]} 63. Rb5 {[%emt 0:00:31]} Ke6 {[%emt 0:00:10]} 64. Rh5 {[%emt 0:00:39]} Ne5+ {[%emt 0:00:03]} 65. Kc3 {[%emt 0:00:22]} Kd5 {[%emt 0:00:07]} 66. Rg5 {[%emt 0:00:26]} Re4 {[%emt 0:00:15]} 67. Rg3 {[%emt 0:00:28]} Ng4 {[%emt 0:00:02]} 68. Rh3 {[%emt 0:00:27]} Nf6 {[%emt 0:00:16]} 69. Rg3 {[%emt 0:00:20]} Rc4+ {[%emt 0:00:17]} 70. Kb3 {[%emt 0:00:17]} Ne4 {[%emt 0:00:04]} 71. Rh3 {[%emt 0:00:11]} Nc5+ {[%emt 0:00:10]} 72. Kb2 {[%emt 0:00:11]} Rb4+ {[%emt 0:00:28]} 73. Kc2 {[%emt 0:00:10]} Ne4 {[%emt 0:00:03]} 74. Rh8 {[%emt 0:00:19]} Rc4+ {[%emt 0:00:42]} 75. Kb2 {[%emt 0:00:13]} Rc7 {[%emt 0:01:08]} 76. Kb3 {[%emt 0:00:27]} Rb7+ {[%emt 0:00:08]} 77. Kc2 {[%emt 0:00:08]} Ra7 {[%emt 0:01:04]} 78. Kb2 {[%emt 0:00:19]} Rg7 {[%emt 0:00:34]} 79. Kb3 {[%emt 0:00:22]} Nc5+ {[%emt 0:00:07]} 80. Kb4 {[%emt 0:00:29]} Rb7+ {[%emt 0:00:09]} 81. Kc3 {[%emt 0:00:10]} Rb3+ {[%emt 0:00:15]} 82. Kc2 {[%emt 0:00:04]} Rg3 {[%emt 0:00:01]} 83. Kb2 {[%emt 0:00:33]} Ne4 {[%emt 0:00:51]} 84. Rc8 {[%emt 0:01:01]} Kd4 {[%emt 0:00:12]} 85. Rh8 {[%emt 0:00:24]} Kc4 {[%emt 0:00:11]} 86. Rh2 {[%emt 0:01:35]} Kb4 {[%emt 0:00:41]} 87. Kc2 {[%emt 0:01:16]} Rc3+ {[%emt 0:00:06]} 88. Kb1 {[%emt 0:00:45]} Re3 {[%emt 0:00:52]} 89. Kc2 {[%emt 0:00:15]} Kc4 {[%emt 0:02:05]} 90. Kb2 {[%emt 0:00:26]} Rg3 {[%emt 0:02:54]} 91. Kc2 {[%emt 0:00:30]} Rg4 {[%emt 0:00:01]} 92. Kb2 {[%emt 0:00:18]} Nc5 {[%emt 0:00:19]} 93. Kc2 {[%emt 0:00:49]} Nb3 {[%emt 0:00:02]} 94. Kb2 {[%emt 0:00:23]} Nd4 {[%emt 0:00:18]} 95. Kc1 {[%emt 0:01:01]} Rg3 {[%emt 0:00:18]} 96. Kb2 {[%emt 0:00:18]} Kb4 {[%emt 0:04:09]} 97. Rf2 {[%emt 0:00:51]} Rb3+ {[%emt 0:01:16]} 98. Ka2 {[%emt 0:00:09]} Kc3 {[%emt 0:00:53]} 99. Rh2 {[%emt 0:00:17]} Rb4 {[%emt 0:00:38]} 100. Rh3+ {[%emt 0:00:12]} Kd2 {[%emt 0:00:05]} 101. Rh2+ {[%emt 0:01:21]} Ne2 {[%emt 0:00:01]} 102. Ka3 {[%emt 0:00:30]} Rb8 {[%emt 0:00:06]} 103. Ka4 {[%emt 0:00:14]} Kd3 {[%emt 0:00:01]} 104. Ka5 {[%emt 0:00:32]} Nd4 {[%emt 0:00:10]} 105. Rh1 {[%emt 0:00:40]} Nc6+ {[%emt 0:00:28]} 106. Ka6 {[%emt 0:00:11]} Nb4+ {[%emt 0:01:24]} 107. Ka5 {[%emt 0:00:28]} Nd5 {[%emt 0:00:22]} 108. Rd1+ {[%emt 0:00:44]} Kc4 {[%emt 0:00:04]} 109. Rc1+ {[%emt 0:00:38]} Nc3 {[%emt 0:00:10]} 110. Ka6 {[%emt 0:00:29]} Kb4 {[%emt 0:00:04]} 111. Ka7 {[%emt 0:00:19]} Rh8 {[%emt 0:00:17]} 1/2-1/2

[Event "SixDays Budapest IM-A 10-2024"]
[Site "Budapest"]
[Date "2024.09.30"]
[Round "1.5"]
[White "Zia, Tahsin Tajwar"]
[Black "Li, Xueyi"]
[Result "1/2-1/2"]
[ECO "D43"]
[WhiteElo "2255"]
[BlackElo "2187"]
[Annotator "RC"]
[PlyCount "103"]
[EventDate "2024.09.24"]
[EventType "tourn"]
[EventCountry "HUN"]
[SourceTitle "playchess.com"]
[Source "ChessBase"]
[SourceQuality "1"]
[TimeControl "5400+30"]

1. d4 {[%emt 0:00:25]} d5 {[%emt 0:03:33]} 2. c4 {[%emt 0:00:13]} c6 {[%emt 0:00:05]} 3. Nf3 {[%emt 0:00:05]} Nf6 {[%emt 0:00:04]} 4. Nc3 {[%emt 0:00:19]} e6 {[%emt 0:00:19]} 5. g3 {[%emt 0:01:08]} dxc4 {[%emt 0:01:30]} 6. Bg2 {[%emt 0:00:07]} Nbd7 {[%emt 0:00:05]} 7. O-O {[%emt 0:00:07]} b5 {[%emt 0:00:20]} 8. e4 {[%emt 0:00:05]} Be7 {[%emt 0:01:54]} 9. d5 {[%emt 0:05:06]} b4 {[%emt 0:11:59]} 10. dxe6 {[%emt 0:00:28]} fxe6 {[%emt 0:12:57]} 11. e5 {[%emt 0:04:02]} bxc3 {[%emt 0:02:41]} 12. exf6 {[%emt 0:00:08]} Bxf6 {[%emt 0:00:07]} 13. bxc3 {[%emt 0:00:27]} O-O {[%emt 0:02:24]} 14. Qc2 {[%emt 0:20:10]} Qa5 {[%emt 0:07:12]} 15. Nd4 {[%emt 0:02:01]} Ne5 {[%emt 0:01:10]} 16. Bf4 {[%emt 0:21:13]} Bd7 {[%emt 0:02:21]} 17. Bxe5 {[%emt 0:06:36]} Bxe5 {[%emt 0:02:40]} 18. Qe2 {[%emt 0:09:15]} Bf6 {[%emt 0:18:27]} 19. Qxc4 {[%emt 0:02:53]} Kh8 {[%emt 0:02:32]} 20. Rac1 {[%emt 0:05:37]} Rac8 {[%emt 0:13:01]} 21. Nb3 {[%emt 0:06:28]} Qb5 {[%emt 0:01:18]} 22. Qc5 {[%emt 0:01:13]} e5 {[%emt 0:01:20]} 23. Qe3 {[%emt 0:04:39]} Be6 {[%emt 0:02:58]} 24. Nc5 {[%emt 0:01:59]} Bxa2 {[%emt 0:03:24]} 25. Ra1 {[%emt 0:00:43]} Bd5 {[%emt 0:04:37]} 26. Bh3 {[%emt 0:03:35]} Rcd8 {[%emt 0:03:43]} 27. Nd7 {[%emt 0:00:07]} a5 {[%emt 0:00:41]} 28. Nxf8 {[%emt 0:00:57]} Rxf8 {[%emt 0:00:01]} 29. Rfb1 {[%emt 0:00:59]} Qa6 {[%emt 0:00:34]} 30. Bf1 {[%emt 0:00:21]} Qa8 {[%emt 0:00:04]} 31. c4 {[%emt 0:00:23]} Bg8 {[%emt 0:00:12]} 32. Qe4 {[%emt 0:01:17]} a4 {[%emt 0:00:07]} 33. Rb4 {[%emt 0:00:36]} a3 {[%emt 0:00:06]} 34. Rb3 {[%emt 0:00:07]} Be7 {[%emt 0:00:17]} 35. Ra2 {[%emt 0:02:34]} h6 {[%emt 0:00:50]} 36. Bd3 {[%emt 0:01:01]} Bc5 {[%emt 0:00:15]} 37. Qxe5 {[%emt 0:00:20]} Qa7 {[%emt 0:00:54]} 38. Kg2 {[%emt 0:00:05]} Bd4 {[%emt 0:01:21]} 39. Qe1 {[%emt 0:00:49]} Bc5 {[%emt 0:00:49]} 40. f3 {[%emt 0:00:12]} Qf7 {[%emt 0:00:25]} 41. Qe4 {[%emt 0:01:08]} Qf6 {[%emt 0:00:45]} 42. h4 {[%emt 0:00:24]} Rd8 {[%emt 0:00:31]} 43. Rc2 {[%emt 0:00:36]} Ra8 {[%emt 0:00:21]} 44. Qe2 {[%emt 0:00:21]} Qd4 {[%emt 0:00:08]} 45. Kh3 {[%emt 0:00:35]} a2 {[%emt 0:01:06]} 46. Rxa2 {[%emt 0:00:08]} Rxa2 {[%emt 0:00:07]} 47. Qxa2 {[%emt 0:00:01]} Be6+ {[%emt 0:00:08]} 48. g4 {[%emt 0:00:09]} Bxg4+ {[%emt 0:00:14]} 49. Kg3 {[%emt 0:02:02]} Bc8 {[%emt 0:00:28]} 50. Qa8 {[%emt 0:00:36]} Qf2+ {[%emt 0:00:32]} 51. Kf4 {[%emt 0:00:04]} Qe3+ {[%emt 0:00:21]} 52. Kg3 {[%emt 0:00:06]} 1/2-1/2